fUSD/lending_fUSD_20250804
["ID","MTS","AMOUNT","RATE_DAILY","PERIOD"]
[377177702,1754268657466,-400.0,0.00049315,120]
[377177703,1754268657475,-400.0,0.00049315,120]
[377177704,1754268657485,-5414.63,0.00049315,120]
[377177705,1754268657494,-1343.31,0.00049315,120]
[377177706,1754268657504,-400.0,0.00049315,120]
[377177707,1754268657513,-4075.46,0.00049315,120]
[377177708,1754268657522,-400.0,0.00049315,120]
[377177709,1754268657531,-400.0,0.00049315,120]
[377177710,1754268657541,-400.0,0.00049315,120]
[377177711,1754268657550,-400.0,0.00049315,120]
[377177712,1754268657560,-400.0,0.00049315,120]
[377177713,1754268657570,-400.0,0.00049315,30]
[377177714,1754268657579,-1379.69,0.00049315,120]
[377177715,1754268657589,-400.0,0.00049315,120]
[377177716,1754268657599,-402.10865922,0.00049315,120]
[377177717,1754268657608,-2593.84,0.00049315,120]
[377177718,1754268657617,-400.0,0.00049315,120]
[377177719,1754268657627,-1030.88,0.00049315,120]
[377177720,1754268657636,-400.0,0.00049315,120]
[377177721,1754268657646,-411.9,0.00049315,120]
[377177722,1754268657655,-445.51,0.00049315,120]
[377177723,1754268657664,-400.0,0.00049315,120]
[377177724,1754268657676,-400.0,0.00049315,16]
[377177725,1754268657687,-833.57,0.00049315,120]
[377177726,1754268657697,-1206.22,0.00049315,120]
[377177727,1754268657706,-607.02,0.00049315,120]
[377177728,1754268657717,-167.63292095,0.00049315,120]
[377177729,1754268657727,-2840.83,0.00049315,120]
[377177730,1754268657737,-400.0,0.00049315,120]
[377177731,1754268657748,-1399.31,0.00049315,120]
[377177732,1754268657759,-538.01,0.00049315,120]
[377177733,1754268657770,-400.0,0.00049315,120]
[377177734,1754268657779,-400.0,0.00049315,120]
[377177735,1754268657790,-400.0,0.00049315,120]
[377177736,1754268657799,-400.0,0.00049315,120]
[377177737,1754268657809,-400.0,0.00049315,120]
[377177738,1754268657820,-400.0,0.00049315,120]
[377177739,1754268657829,-400.0,0.00049315,120]
[377177740,1754268657839,-400.0,0.00049315,120]
[377177741,1754268657848,-400.0,0.00049315,120]
[377177742,1754268657858,-803.92,0.00049315,120]
[377177743,1754268657867,-400.0,0.00049315,120]
[377177744,1754268657877,-403.21,0.00049315,120]
[377177745,1754268657887,-400.0,0.00049315,120]
[377177746,1754268657897,-475.93,0.00049315,120]
[377177747,1754268657907,-400.0,0.00049315,120]
[377177748,1754268657917,-400.0,0.00049315,120]
[377177749,1754268657926,-400.0,0.00049315,120]
[377177750,1754268657936,-400.0,0.00049315,120]
[377177751,1754268657946,-400.0,0.00049315,120]
[377177752,1754268657955,-2726.84,0.00049315,120]
[377177753,1754268657965,-400.0,0.00049315,120]
[377177754,1754268657975,-1006.17,0.00049315,120]
[377177755,1754268657985,-400.0,0.00049315,120]
[377177756,1754268657995,-621.49,0.00049315,120]
[377177757,1754268658004,-758.57,0.00049315,120]
[377177758,1754268658014,-400.0,0.00049315,120]
[377177759,1754268658024,-400.0,0.00049315,120]
[377177760,1754268658034,-400.0,0.00049315,120]
[377177761,1754268658044,-400.0,0.00049315,120]
[377177762,1754268658053,-1049.57,0.00049315,120]
[377177763,1754268658063,-1350.55,0.00049315,120]
[377177764,1754268658073,-402.59655457,0.00049315,120]
[377177765,1754268658083,-400.0,0.00049315,2]
[377177766,1754268658092,-400.0,0.00049315,120]
[377177767,1754268658102,-400.0,0.00049315,120]
[377177768,1754268658111,-400.0,0.00049315,120]
[377177769,1754268658121,-400.0,0.00049315,120]
[377177770,1754268658131,-876.85,0.00049315,120]
[377177771,1754268658141,-196.59888784,0.00049315,2]
[377177772,1754268658151,-400.0,0.00049315,120]
[377177773,1754268658160,-400.0,0.00049315,120]
[377177774,1754268658170,-801.02,0.00049315,120]
[377177775,1754268658179,-1044.86,0.00049315,120]
[377177776,1754268658189,-400.0,0.00049315,120]
[377177777,1754268658199,-496.26,0.00049315,120]
[377177778,1754268658208,-400.0,0.00049315,2]
[377177779,1754268658218,-400.0,0.00049315,120]
[377177780,1754268658227,-400.0,0.00049315,120]
[377177781,1754268658237,-400.0,0.00049315,120]
[377177782,1754268658247,-400.0,0.00049315,120]
[377177783,1754268658256,-400.0,0.00049315,120]
[377177784,1754268658265,-400.0,0.00049315,120]
[377177785,1754268658275,-400.0,0.00049315,120]
[377177786,1754268658284,-400.0,0.00049315,120]
[377177787,1754268658294,-400.0,0.00049315,120]
[377177788,1754268658303,-2403.7,0.00049315,120]
[377177789,1754268658314,-563.95,0.00049315,120]
[377177790,1754268658323,-400.0,0.00049315,120]
[377177791,1754268658332,-400.0,0.00049315,120]
[377177792,1754268658342,-402.50629581,0.00049315,120]
[377177793,1754268658351,-400.0,0.00049315,120]
[377177794,1754268658361,-688.74,0.00049315,120]
[377177795,1754268658370,-1799.51,0.00049315,120]
[377177796,1754268658380,-400.0,0.00049315,120]
[377177797,1754268658389,-400.0,0.00049315,120]
[377177798,1754268658399,-400.0,0.00049315,120]
[377177799,1754268658408,-400.0,0.00049315,120]
[377177800,1754268658417,-400.0,0.00049315,120]
[377177801,1754268658427,-400.0,0.00049315,120]
[377177802,1754268658436,-1965.73,0.00049315,120]
[377177803,1754268658446,-400.0,0.00049315,120]
[377177804,1754268658455,-400.0,0.00049315,120]
[377177805,1754268658465,-400.0,0.00049315,120]
[377177806,1754268658474,-400.0,0.00049315,120]
[377177807,1754268658484,-400.0,0.00049315,120]
[377177808,1754268658493,-400.0,0.00049315,120]
[377177809,1754268658503,-400.0,0.00049315,120]
[377177810,1754268658512,-400.0,0.00049315,120]
[377177811,1754268658521,-514.31,0.00049315,120]
[377177812,1754268658530,-300.0,0.00049315,120]
[377177813,1754268658539,-150.0,0.00049319,7]
[377177814,1754268658550,-150.0,0.00049333,7]
[377177815,1754268658559,-151.0,0.00049399,120]
[377177816,1754268658574,-151.0,0.00049399,120]
[377177817,1754268658584,-500.0,0.000494,10]
[377177818,1754268658596,-150.0,0.00049415,7]
[377177819,1754268658606,-1000.0,0.00049425,30]
[377177820,1754268658615,-150.0,0.00049475,7]
[377177821,1754268658624,-305.44819087,0.00049488,120]
[377177822,1754268658633,-577.67,0.00049488,120]
[377177823,1754268658644,-400.0,0.00049488,120]
[377177824,1754268658653,-400.0,0.00049488,120]
[377177825,1754268658663,-400.0,0.00049488,120]
[377177826,1754268658672,-400.0,0.00049488,120]
[377177827,1754268658682,-400.0,0.00049488,120]
[377177828,1754268658691,-400.0,0.00049488,120]
[377177829,1754268658702,-400.0,0.00049488,120]
[377177830,1754268658712,-622.82,0.00049488,120]
[377177831,1754268658722,-400.0,0.00049488,120]
[377177832,1754268658732,-400.0,0.00049488,120]
[377177833,1754268658741,-644.55,0.00049488,120]
[377177834,1754268658752,-461.64,0.00049488,120]
[377177835,1754268658761,-400.0,0.00049488,120]
[377177836,1754268658771,-400.0,0.00049488,120]
[377177837,1754268658781,-520.0,0.00049488,120]
[377177838,1754268658790,-422.04472796,0.00049488,120]
[377177839,1754268658799,-400.0,0.00049488,120]
[377177840,1754268658809,-400.0,0.00049488,120]
[377177841,1754268658822,-787.59,0.00049488,120]
[377177842,1754268658831,-564.34,0.00049488,120]
[377177843,1754268658840,-400.0,0.00049488,120]
[377177844,1754268658850,-400.0,0.00049488,120]
[377177845,1754268658859,-400.0,0.00049488,120]
[377177846,1754268658870,-400.0,0.00049488,120]
[377177847,1754268658879,-514.06,0.00049488,120]
[377177848,1754268658889,-603.45,0.00049488,120]
[377177849,1754268658899,-400.0,0.00049488,120]
[377177850,1754268658909,-400.0,0.00049488,120]
[377177851,1754268658919,-492.61,0.00049488,120]
[377177852,1754268658928,-1019.68,0.00049488,120]
[377177853,1754268658937,-400.0,0.00049488,120]
[377177854,1754268658947,-400.0,0.00049488,120]
[377177855,1754268658956,-693.58,0.00049488,120]
[377177856,1754268658965,-508.83637919,0.00049488,120]
[377177857,1754268658975,-587.22,0.00049488,120]
[377177858,1754268658984,-703.36,0.00049488,120]
[377177859,1754268658994,-400.0,0.00049488,120]
[377177860,1754268659003,-400.0,0.00049488,120]
[377177861,1754268659014,-400.0,0.00049488,120]
[377177862,1754268659023,-543.65,0.00049488,120]
[377177863,1754268659033,-468.51,0.00049488,120]
[377177864,1754268659043,-400.0,0.00049488,120]
[377177865,1754268659053,-400.0,0.00049488,120]
[377177866,1754268659064,-495.42,0.00049488,120]
[377177867,1754268659073,-571.01,0.00049488,120]
[377177868,1754268659084,-400.0,0.00049488,120]
[377177869,1754268659094,-400.0,0.00049488,120]
[377177870,1754268659104,-400.0,0.00049488,120]
[377177871,1754268659113,-951.61,0.00049488,120]
[377177872,1754268659123,-1324.48,0.00049488,120]
[377177873,1754268659133,-184.107189,0.00049488,120]
[377177874,1754268659142,-156.894524,0.00049488,120]
[377177875,1754268659153,-400.0,0.00049488,120]
[377177876,1754268659163,-926.35,0.00049488,120]
[377177877,1754268659172,-400.0,0.00049488,120]
[377177878,1754268659182,-400.0,0.00049488,120]
[377177879,1754268659191,-197.22646791,0.00049488,120]
[377177880,1754268659200,-942.67,0.00049488,120]
[377177881,1754268659210,-400.0,0.00049488,120]
[377177882,1754268659221,-400.0,0.00049488,120]
[377177883,1754268659230,-400.0,0.00049488,120]
[377177884,1754268659240,-400.0,0.00049488,120]
[377177885,1754268659249,-151.0,0.00049488,120]
[377177886,1754268659258,-277.1626619,0.00049488,120]
[377177887,1754268659268,-774.71,0.00049488,2]
[377177888,1754268659277,-151.0,0.00049488,120]
[377177889,1754268659286,-456.96,0.00049488,120]
[377177890,1754268659296,-400.0,0.00049488,120]
[377177891,1754268659306,-151.0,0.00049488,120]
[377177892,1754268659317,-400.0,0.00049488,120]
[377177893,1754268659326,-400.0,0.00049488,120]
[377177894,1754268659335,-514.87,0.00049488,120]
[377177895,1754268659344,-415.85,0.00049488,120]
[377177896,1754268659354,-903.59,0.00049488,120]
[377177897,1754268659363,-1185.83,0.00049488,120]
[377177898,1754268659373,-400.0,0.00049488,120]
[377177899,1754268659382,-400.0,0.00049488,120]
[377177900,1754268659392,-155.610329,0.00049488,120]
[377177901,1754268659401,-400.0,0.00049488,120]
[377177902,1754268659410,-151.0,0.00049488,120]
[377177903,1754268659419,-400.0,0.00049488,120]
[377177904,1754268659428,-400.0,0.00049488,120]
[377177905,1754268659437,-1465.1,0.00049488,120]
[377177906,1754268659446,-857.32,0.00049488,120]
[377177907,1754268659455,-400.0,0.00049488,120]
[377177908,1754268659464,-524.75,0.00049488,120]
[377177909,1754268659474,-400.0,0.00049488,120]
[377177910,1754268659483,-415.82,0.00049488,120]
[377177911,1754268659492,-400.0,0.00049488,120]
[377177912,1754268659502,-400.0,0.00049488,120]
[377177913,1754268659511,-400.0,0.00049488,120]
[377177914,1754268659520,-400.0,0.00049488,120]
[377177915,1754268659529,-700.06,0.00049488,120]
[377177916,1754268659539,-1050.8,0.00049488,120]
[377177917,1754268659548,-1526.54,0.00049488,120]
[377177918,1754268659557,-199.53893,0.00049488,120]
[377177919,1754268659568,-400.0,0.00049488,120]
[377177920,1754268659577,-400.0,0.00049488,120]
[377177921,1754268659586,-151.0,0.00049488,120]
[377177922,1754268659595,-400.0,0.00049488,120]
[377177923,1754268659605,-400.0,0.00049488,120]
[377177924,1754268659614,-400.0,0.00049488,120]
[377177925,1754268659623,-894.73,0.00049488,120]
[377177926,1754268659633,-400.0,0.00049488,120]
[377177927,1754268659642,-204.054223,0.00049488,120]
[377177928,1754268659651,-204.054223,0.00049488,120]
[377177929,1754268659660,-1175.66,0.00049488,120]
[377177930,1754268659669,-915.67,0.00049488,120]
[377177931,1754268659682,-400.0,0.00049488,120]
[377177932,1754268659700,-966.88,0.00049488,120]
[377177933,1754268659712,-400.0,0.00049488,120]
[377177934,1754268659722,-472.66,0.00049488,120]
[377177935,1754268659731,-400.0,0.00049488,120]
[377177936,1754268659741,-400.0,0.00049488,120]
[377177937,1754268659750,-300.0,0.00049488,120]
[377177938,1754268659760,-400.0,0.00049488,120]
[377177939,1754268659864,-400.0,0.00049488,120]
[377177940,1754268659876,-400.0,0.00049488,120]
[377177941,1754268659885,-400.0,0.00049488,120]
[377177942,1754268659895,-1505.21,0.00049488,120]
[377177943,1754268659903,-647.16,0.00049488,120]
[377177944,1754268659913,-400.0,0.00049488,120]
[377177945,1754268659922,-1025.56,0.00049488,120]
[377177946,1754268659931,-400.0,0.00049488,120]
[377177947,1754268659941,-400.0,0.00049488,120]
[377177948,1754268659950,-400.0,0.00049488,120]
[377177949,1754268659960,-400.0,0.00049488,120]
[377177950,1754268659969,-163.268808,0.00049488,120]
[377177951,1754268659978,-1338.88,0.00049488,120]
[377177952,1754268659987,-400.0,0.00049488,120]
[377177953,1754268659996,-430.02,0.00049488,120]
[377177954,1754268660005,-1087.32,0.00049488,120]
[377177955,1754268660015,-400.0,0.00049488,120]
[377177956,1754268660024,-400.0,0.00049488,120]
[377177957,1754268660033,-516.68,0.00049488,120]
[377177958,1754268660043,-400.0,0.00049488,120]
[377177959,1754268660053,-400.0,0.00049488,120]
[377177960,1754268660062,-801.59,0.00049488,120]
[377177961,1754268660072,-456.45,0.00049488,120]
[377177962,1754268660082,-400.0,0.00049488,120]
[377177963,1754268660091,-400.0,0.00049488,120]
[377177964,1754268660100,-400.0,0.00049488,120]
[377177965,1754268660110,-1552.07,0.00049488,120]
[377177966,1754268660119,-400.0,0.00049488,120]
[377177967,1754268660129,-421.03,0.00049488,120]
[377177968,1754268660138,-151.0,0.00049488,120]
[377177969,1754268660147,-979.49,0.00049488,120]
[377177970,1754268660158,-400.0,0.00049488,120]
[377177971,1754268660167,-400.0,0.00049488,120]
[377177972,1754268660176,-400.0,0.00049488,120]
[377177973,1754268660185,-500.0,0.00049488,120]
[377177974,1754268660194,-400.0,0.00049488,120]
[377177975,1754268660203,-855.13,0.00049488,120]
[377177976,1754268660212,-400.0,0.00049488,120]
[377177977,1754268660222,-400.0,0.00049488,120]
[377177978,1754268660231,-635.5,0.00049488,120]
[377177979,1754268660240,-400.0,0.00049488,120]
[377177980,1754268660250,-400.0,0.00049488,120]
[377177981,1754268660260,-400.0,0.00049488,120]
[377177982,1754268660270,-400.0,0.00049488,60]
[377177983,1754268660279,-151.0,0.00049488,120]
[377177984,1754268660288,-698.78,0.00049488,120]
[377177985,1754268660297,-403.91125021,0.00049488,120]
[377177986,1754268660307,-400.0,0.00049488,120]
[377177987,1754268660318,-400.0,0.00049488,120]
[377177988,1754268660327,-573.51,0.00049488,120]
[377177989,1754268660337,-400.0,0.00049488,120]
[377177990,1754268660346,-241.030498,0.00049488,120]
[377177991,1754268660356,-1529.14,0.00049488,120]
[377177992,1754268660365,-151.0,0.00049488,120]
[377177993,1754268660375,-400.0,0.00049488,120]
[377177994,1754268660384,-458.21,0.00049488,120]
[377177995,1754268660393,-400.0,0.00049488,120]
[377177996,1754268660402,-400.0,0.00049488,120]
[377177997,1754268660412,-400.0,0.00049488,120]
[377177998,1754268660421,-789.14,0.00049488,120]
[377177999,1754268660430,-151.0,0.00049488,120]
[377178000,1754268660439,-400.0,0.00049488,120]
[377178001,1754268660448,-400.0,0.00049488,120]
[377178002,1754268660457,-400.0,0.00049488,120]
[377178003,1754268660466,-400.0,0.00049488,120]
[377178004,1754268660476,-151.0,0.00049488,120]
[377178005,1754268660485,-423.23,0.00049488,30]
[377178006,1754268660494,-670.31,0.00049488,120]
[377178007,1754268660503,-400.0,0.00049488,120]
[377178008,1754268660513,-400.0,0.00049488,120]
[377178009,1754268660523,-488.78,0.00049488,120]
[377178010,1754268660532,-400.0,0.00049488,120]
[377178011,1754268660541,-526.89,0.00049488,120]
[377178012,1754268660550,-400.0,0.00049488,120]
[377178013,1754268660560,-1448.55,0.00049488,120]
[377178014,1754268660570,-400.0,0.00049488,120]
[377178015,1754268660579,-400.0,0.00049488,120]
[377178016,1754268660589,-400.0,0.00049488,120]
[377178017,1754268660598,-151.0,0.00049488,120]
[377178018,1754268660607,-151.0,0.00049488,120]
[377178019,1754268660617,-1301.65,0.00049488,120]
[377178020,1754268660626,-400.0,0.00049488,120]
[377178021,1754268660635,-400.0,0.00049488,120]
[377178022,1754268660644,-400.0,0.00049488,120]
[377178023,1754268660653,-1338.8,0.00049488,120]
[377178024,1754268660663,-400.0,0.00049488,120]
[377178025,1754268660672,-400.0,0.00049488,120]
[377178026,1754268660681,-1237.03,0.00049488,120]
[377178027,1754268660692,-151.0,0.00049488,120]
[377178028,1754268660701,-460.0,0.00049488,120]
[377178029,1754268660710,-712.17,0.00049488,120]
[377178030,1754268660719,-769.66,0.00049488,120]
[377178031,1754268660729,-234.038804,0.00049488,120]
[377178032,1754268660738,-234.038804,0.00049488,120]
[377178033,1754268660748,-442.21,0.00049488,120]
[377178034,1754268660763,-701.08,0.00049488,120]
[377178035,1754268660773,-400.0,0.00049488,120]
[377178036,1754268660782,-151.0,0.00049488,120]
[377178037,1754268660792,-400.0,0.00049488,120]
[377178038,1754268660801,-247.269414,0.00049488,120]
[377178039,1754268660811,-247.269414,0.00049488,120]
[377178040,1754268660825,-400.0,0.00049488,120]
[377178041,1754268660834,-400.0,0.00049488,120]
[377178042,1754268660843,-400.0,0.00049488,120]
[377178043,1754268660853,-400.0,0.00049488,120]
[377178044,1754268660862,-400.0,0.00049488,120]
[377178045,1754268660871,-400.0,0.00049488,120]
[377178046,1754268660884,-400.0,0.00049488,120]
[377178047,1754268660893,-400.0,0.00049488,120]
[377178048,1754268660903,-805.41,0.00049488,120]
[377178049,1754268660912,-400.0,0.00049488,120]
[377178050,1754268660920,-400.0,0.00049488,120]
[377178051,1754268660930,-696.53,0.00049488,120]
[377178052,1754268660939,-400.0,0.00049488,120]
[377178053,1754268660948,-400.0,0.00049488,120]
[377178054,1754268660957,-912.95,0.00049488,120]
[377178055,1754268660966,-461.348579,0.00049488,120]
[377178056,1754268660976,-461.348579,0.00049488,120]
[377178057,1754268660985,-400.0,0.00049488,120]
[377178058,1754268660995,-905.71,0.00049488,120]
[377178059,1754268661005,-400.0,0.00049488,120]
[377178060,1754268661016,-608.27536053,0.00049488,30]
[377178061,1754268661026,-580.23,0.00049488,120]
[377178062,1754268661036,-793.8,0.00049488,120]
[377178063,1754268661045,-168.395824,0.00049488,120]
[377178064,1754268661055,-400.0,0.00049488,120]
[377178065,1754268661064,-168.395824,0.00049488,120]
[377178066,1754268661074,-225.704179,0.00049488,120]
[377178067,1754268661083,-552.79,0.00049488,120]
[377178068,1754268661092,-225.704179,0.00049488,120]
[377178069,1754268661101,-483.55573544,0.00049488,120]
[377178070,1754268661111,-220.556036,0.00049488,120]
[377178071,1754268661120,-400.0,0.00049488,120]
[377178072,1754268661129,-220.556036,0.00049488,120]
[377178073,1754268661138,-223.149411,0.00049488,120]
[377178074,1754268661147,-1237.18,0.00049488,120]
[377178075,1754268661156,-223.149411,0.00049488,120]
[377178076,1754268661166,-266.40400872,0.00049488,120]
[377178077,1754268661175,-450.25,0.00049488,120]
[377178078,1754268661185,-795.25,0.00049488,120]
[377178079,1754268661198,-400.0,0.00049488,120]
[377178080,1754268661212,-400.0,0.00049488,120]
[377178081,1754268661221,-400.0,0.00049488,120]
[377178082,1754268661231,-400.0,0.00049488,120]
[377178083,1754268661240,-756.53,0.00049488,120]
[377178084,1754268661250,-1351.92,0.00049488,120]
[377178085,1754268661259,-400.29653733,0.00049488,120]
[377178086,1754268661268,-400.0,0.00049488,120]
[377178087,1754268661278,-1388.21,0.00049488,120]
[377178088,1754268661286,-400.0,0.00049488,120]
[377178089,1754268661295,-698.43,0.00049488,120]
[377178090,1754268661304,-400.0,0.00049488,120]
[377178091,1754268661315,-400.0,0.00049488,120]
[377178092,1754268661324,-589.66,0.00049488,120]
[377178093,1754268661333,-400.0,0.00049488,120]
[377178094,1754268661343,-867.69,0.00049488,120]
[377178095,1754268661352,-400.0,0.00049488,120]
[377178096,1754268661361,-400.0,0.00049488,120]
[377178097,1754268661370,-400.0,0.00049488,120]
[377178098,1754268661379,-400.0,0.00049488,120]
[377178099,1754268661388,-400.0,0.00049488,120]
[377178100,1754268661397,-400.0,0.00049488,120]
[377178101,1754268661406,-446.14,0.00049488,120]
[377178102,1754268661415,-596.56,0.00049488,120]
[377178103,1754268661424,-400.0,0.00049488,120]
[377178104,1754268661433,-400.0,0.00049488,120]
[377178105,1754268661442,-400.0,0.00049488,120]
[377178106,1754268661451,-295.245203,0.00049488,120]
[377178107,1754268661460,-841.86,0.00049488,120]
[377178108,1754268661469,-295.245203,0.00049488,120]
[377178109,1754268661477,-400.0,0.00049488,120]
[377178110,1754268661486,-400.0,0.00049488,120]
[377178111,1754268661495,-611.64,0.00049488,120]
[377178112,1754268661504,-151.0,0.00049488,120]
[377178113,1754268661514,-151.0,0.00049488,120]
[377178114,1754268661524,-151.0,0.00049488,120]
[377178115,1754268661534,-151.0,0.00049488,120]
[377178116,1754268661543,-400.0,0.00049488,120]
[377178117,1754268661553,-400.0,0.00049488,120]
[377178118,1754268661563,-400.0,0.00049488,120]
[377178119,1754268661574,-400.0,0.00049488,120]
[377178120,1754268661583,-724.66,0.00049488,120]
[377178121,1754268661592,-881.24,0.00049488,120]
[377178122,1754268661601,-520.555924,0.00049488,120]
[377178123,1754268661610,-456.99,0.00049488,120]
[377178124,1754268661619,-520.555924,0.00049488,120]
[377178125,1754268661628,-980.28,0.00049488,120]
[377178126,1754268661637,-400.0,0.00049488,120]
[377178127,1754268661646,-151.0,0.00049488,118]
[377178128,1754268661655,-151.0,0.00049488,90]
[377178129,1754268661664,-400.0,0.00049488,120]
[377178130,1754268661673,-510.92,0.00049488,120]
[377178131,1754268661685,-400.0,0.00049488,120]
[377178132,1754268661695,-400.0,0.00049488,120]
[377178133,1754268661704,-400.0,0.00049488,120]
[377178134,1754268661713,-400.0,0.00049488,120]
[377178135,1754268661723,-459.38,0.00049488,120]
[377178136,1754268661732,-400.0,0.00049488,120]
[377178137,1754268661741,-400.0,0.00049488,120]
[377178138,1754268661750,-400.0,0.00049488,120]
[377178139,1754268661762,-400.0,0.00049488,120]
[377178140,1754268661771,-400.0,0.00049488,120]
[377178141,1754268661781,-400.0,0.00049488,120]
[377178142,1754268661790,-400.0,0.00049488,120]
[377178143,1754268661801,-400.0,0.00049488,120]
[377178144,1754268661810,-401.96705092,0.00049488,120]
[377178145,1754268661823,-611.13,0.00049488,120]
[377178146,1754268661833,-657.96,0.00049488,120]
[377178147,1754268661843,-1601.2,0.00049488,120]
[377178148,1754268661852,-400.0,0.00049488,120]
[377178149,1754268661861,-529.68,0.00049488,120]
[377178150,1754268661871,-400.0,0.00049488,120]
[377178151,1754268661880,-927.89,0.00049488,120]
[377178152,1754268661889,-151.0,0.00049489,120]
[377178153,1754268661898,-151.0,0.00049489,120]
[377178154,1754268661907,-151.0,0.00049489,120]
[377178155,1754268661916,-168.355508,0.00049489,60]
[377178156,1754268661926,-168.355508,0.00049489,60]
[377178157,1754268661936,-151.0,0.00049489,120]
[377178158,1754268661945,-151.0,0.00049489,120]
[377178159,1754268661954,-151.0,0.00049489,120]
[377178160,1754268661963,-151.0,0.00049489,120]
[377178161,1754268661972,-2000.0,0.000495,120]
[377178162,1754268661981,-152.0,0.000495,120]
[377178163,1754268661991,-500.0,0.00049573,10]
[377178164,1754268662000,-150.0,0.00049573,3]
[377178165,1754268662010,-855.13,0.00049578,120]
[377178166,1754268662019,-999.0,0.00049578,120]
[377178167,1754268662028,-855.13,0.00049588,120]
[377178168,1754268662037,-400.0,0.00049589,120]
[377178169,1754268662046,-400.0,0.00049589,120]
[377178170,1754268662055,-151.0,0.00049589,120]
[377178171,1754268662065,-151.0,0.00049589,120]
[377178172,1754268662077,-151.0,0.00049589,120]
[377178173,1754268662087,-151.0,0.00049589,120]
[377178174,1754268662097,-400.0,0.00049589,120]
[377178175,1754268662107,-151.0,0.00049589,120]
[377178176,1754268662117,-282.737341,0.00049589,120]
[377178177,1754268662127,-151.0,0.00049589,120]
[377178178,1754268662138,-282.737341,0.00049589,120]
[377178179,1754268662147,-400.0,0.00049589,120]
[377178180,1754268662157,-400.0,0.00049589,120]
[377178181,1754268662166,-1244.74,0.00049589,120]
[377178182,1754268662175,-826.02,0.00049589,120]
[377178183,1754268662184,-453.71,0.00049589,120]
[377178184,1754268662193,-151.0,0.00049589,120]
[377178185,1754268662203,-661.4,0.00049589,120]
[377178186,1754268662212,-664.09,0.00049589,120]
[377178187,1754268662221,-400.0,0.00049589,120]
[377178188,1754268662233,-400.0,0.00049589,120]
[377178189,1754268662245,-400.0,0.00049589,120]
[377178190,1754268662255,-400.0,0.00049589,120]
[377178191,1754268662265,-400.0,0.00049589,120]
[377178192,1754268662275,-855.87,0.00049589,120]
[377178193,1754268662285,-400.0,0.00049589,120]
[377178194,1754268662295,-400.0,0.00049589,120]
[377178195,1754268662304,-467.5,0.00049589,120]
[377178196,1754268662313,-598.51,0.00049589,30]
[377178197,1754268662324,-1194.47,0.00049589,120]
[377178198,1754268662333,-400.0,0.00049589,120]
[377178199,1754268662342,-400.0,0.00049589,120]
[377178200,1754268662352,-400.0,0.00049589,120]
[377178201,1754268662361,-510.02,0.00049589,120]